bitfinex/quotes_ETHUSD_20250626
["timestamp","ask_amount","ask_price","bid_price","bid_amount"]
[1750929102479,0.2016,2478.0,2477.9,4.03567537]
[1750929102680,10.7708,2478.5,2478.1,4.0353035]
[1750929103009,12.04838,2478.5,2477.7,4.03588078]
[1750929103306,0.2016,2478.1,2478.0,4.03551251]
[1750929103508,0.2016,2478.3,2478.1,4.0352534]
[1750929103675,0.2016,2478.3,2478.0,4.03542048]
[1750929105121,0.2016,2478.3,2477.8,1.0179]
[1750929105286,0.2016,2478.3,2477.8,5.05368312]
[1750929105483,0.2016,2478.3,2477.9,4.03555752]
[1750929105686,0.2016,2478.3,2477.9,4.03567537]
[1750929105993,0.2016,2478.3,2478.1,4.0353468]
[1750929106404,0.2016,2478.3,2478.2,4.03518682]
[1750929107116,0.2016,2478.6,2478.2,5.0438367]
[1750929107317,0.2016,2478.6,2478.2,4.23678682]
[1750929107622,0.2016,2478.3,2478.1,4.03533074]
[1750929107833,0.2016,2478.3,2478.1,4.0352157]
[1750929107990,0.2016,2478.3,2478.0,4.03543482]
[1750929108705,0.2016,2478.3,2478.2,4.03518682]
[1750929108902,0.2016,2478.3,2478.1,4.03525432]
[1750929109515,0.2016,2478.3,2478.0,4.03549107]
[1750929109717,0.2016,2478.3,2477.8,7.1826]
[1750929109909,0.2016,2478.3,2477.8,11.21839719]
[1750929110110,0.802,2478.2,2477.6,4.0360646]
[1750929110309,0.2016,2478.0,2477.6,4.03608488]
[1750929111928,0.2016,2478.0,2477.6,4.03616402]
[1750929112135,0.2016,2478.0,2477.8,4.03571767]
[1750929112309,0.2016,2478.0,2477.5,0.2016]
[1750929112518,10.0,2478.4,2478.1,4.03524174]
[1750929112827,10.2016,2478.4,2478.1,4.03524174]
[1750929113537,10.2016,2478.4,2478.1,4.03523914]
[1750929114229,10.2016,2478.4,2478.2,4.03517194]
[1750929114455,10.2016,2478.4,2478.1,4.0353406]
[1750929117241,10.2016,2478.4,2478.2,4.03511615]
[1750929117447,10.2016,2478.4,2478.3,4.035024]
[1750929117642,10.2016,2478.4,2478.2,4.03511615]
[1750929118253,10.0,2478.5,2478.4,4.0348612]
[1750929118454,10.0,2478.5,2478.3,4.035024]
[1750929118455,0.2016,2478.6,2478.5,4.0346984]
[1750929118951,1.15603515,2478.6,2478.5,4.0346984]
[1750929119162,0.2016,2478.6,2478.5,4.0346984]
[1750929119315,0.2016,2478.6,2478.2,0.60511162]
[1750929119517,1.15603515,2478.6,2478.3,4.035024]
[1750929119743,1.15603515,2478.6,2478.4,4.03471642]
[1750929119949,1.15603515,2478.6,2478.5,4.0346984]
[1750929120117,1.15603515,2478.6,2478.4,4.03476447]
[1750929120318,1.15603515,2478.6,2478.5,4.0346984]
[1750929120528,0.95443515,2478.6,2478.5,4.0346984]
[1750929120727,0.95443515,2478.6,2478.4,0.2016]
[1750929120951,0.2016,2478.6,2478.2,0.2016]
[1750929121251,1.15603515,2478.6,2478.2,4.23676633]
[1750929121548,0.2016,2478.6,2478.2,4.23676633]
[1750929121740,1.15603515,2478.6,2478.2,4.23676633]
[1750929122039,0.2016,2478.6,2478.2,4.23676633]
[1750929122236,0.2016,2478.6,2477.9,4.03559117]
[1750929122237,2.15067867,2478.6,2477.9,4.03559117]
[1750929122445,2.15067867,2478.6,2477.5,0.7586]
[1750929122446,0.752,2478.4,2477.5,0.7586]
[1750929122634,0.2016,2478.1,2477.7,4.03590649]
[1750929123319,10.95443515,2478.3,2477.6,4.23767064]
[1750929123523,0.2016,2478.0,2477.6,4.23767064]
[1750929123716,0.2016,2478.0,2477.9,4.03567537]
[1750929124626,0.2016,2478.0,2477.7,4.03594435]
[1750929124627,0.2016,2478.0,2477.7,4.03590628]
[1750929125220,0.2016,2478.0,2477.8,4.03583305]
[1750929125540,0.2016,2478.0,2477.9,4.03567537]
[1750929125743,0.2016,2478.0,2477.8,4.03575063]
[1750929126552,0.2016,2478.0,2477.7,4.03591615]
[1750929126876,0.2016,2478.0,2477.6,4.23766904]
[1750929127034,0.2016,2478.0,2477.7,4.03596329]
[1750929127232,0.2016,2478.0,2477.6,4.23775972]
[1750929127537,0.2016,2478.0,2477.7,4.03599867]
[1750929127926,0.2016,2478.0,2477.8,4.03580675]
[1750929128467,0.2016,2478.0,2477.8,4.03568814]
[1750929128961,10.0,2478.1,2478.0,4.03551251]
[1750929129342,10.95518753,2478.1,2477.8,4.03575169]
[1750929129538,10.95518753,2478.1,2477.6,4.23767971]
[1750929129757,11.15678753,2478.1,2477.7,4.03599236]
[1750929130065,11.15678753,2478.1,2477.6,4.23767213]
[1750929130268,0.83,2478.0,2477.4,4.03640156]
[1750929130580,0.2016,2477.8,2477.5,4.03630388]
[1750929130863,11.78518753,2478.0,2477.4,4.23800156]
[1750929130864,0.95518753,2478.0,2477.9,4.03567537]
[1750929131069,17.89118753,2478.2,2478.0,4.03546235]
[1750929131274,0.2016,2478.3,2478.2,4.03518682]
[1750929131563,10.0,2478.4,2478.3,4.035024]
[1750929131764,10.9552964,2478.4,2478.3,4.035024]
[1750929132466,10.9552964,2478.4,2478.1,4.0353116]
[1750929132668,1.1568964,2478.3,2478.0,4.03550704]
[1750929132885,0.2016,2478.3,2477.9,4.23717937]
[1750929133036,1.1568964,2478.3,2478.0,4.03544943]
[1750929133238,0.2016,2478.3,2478.0,4.03544943]
[1750929133663,0.2016,2478.3,2477.9,4.23717937]
[1750929133664,0.2016,2478.3,2478.1,4.03532868]
[1750929133862,0.2016,2478.3,2478.0,4.03544852]
[1750929134059,0.2016,2478.3,2478.1,4.03526971]
[1750929134773,0.2016,2478.3,2477.9,0.2016]
[1750929134962,1.1568964,2478.3,2477.9,0.2016]
[1750929135154,1.1568964,2478.3,2477.4,4.03637304]
[1750929135155,0.7889,2478.1,2477.4,4.03637304]
[1750929135352,0.9552964,2478.0,2477.7,4.03598242]
[1750929135538,10.9552964,2477.9,2477.5,4.03619387]
[1750929135743,10.9552964,2477.9,2477.2,4.80100794]
[1750929135744,10.9552964,2477.9,2477.4,4.0364336]
[1750929136037,17.8842964,2477.9,2477.2,0.7642]
[1750929136248,0.9552964,2477.8,2477.4,4.03639836]
[1750929136547,0.9552964,2477.8,2477.3,4.03658032]
[1750929136957,0.9552964,2477.8,2477.4,4.03640415]
[1750929137153,0.9552964,2477.8,2477.3,4.03658032]
[1750929137378,0.9552964,2477.8,2477.3,4.03655688]
[1750929137553,0.9552964,2477.8,2476.9,2.6676]
[1750929137753,0.9552964,2477.8,2477.2,4.03678118]
[1750929138266,0.7595,2477.7,2477.2,4.03678118]
[1750929138466,0.7595,2477.7,2477.3,4.03664816]
[1750929138666,6.921,2477.6,2477.2,4.03680736]
[1750929138978,6.921,2477.6,2477.1,4.03689415]
[1750929139987,7.81460021,2477.6,2477.1,4.03689415]
[1750929140690,6.921,2477.6,2477.1,4.03693647]
[1750929140852,10.0,2477.5,2476.9,4.03721734]
[1750929141048,10.7866,2477.3,2476.3,0.8232]
[1750929141382,6.916,2477.2,2476.8,4.03736353]
[1750929141547,8.838,2477.2,2476.8,4.03736353]
[1750929142083,8.838,2477.2,2476.7,4.0376204]
[1750929142262,8.838,2477.2,2476.8,4.03741083]
[1750929142574,8.838,2477.2,2476.7,4.03751891]
[1750929142575,10.0,2477.1,2476.7,4.03751891]
[1750929143477,11.96246,2477.1,2476.3,4.86143313]
[1750929143672,10.0,2477.1,2476.8,4.0373458]
[1750929143954,11.915,2477.2,2476.7,4.0375547]
[1750929144149,11.915,2477.2,2476.7,4.03755107]
[1750929144475,11.915,2477.2,2476.4,4.03811985]
[1750929144668,11.915,2477.2,2477.0,4.03710192]
[1750929144871,11.915,2477.7,2476.8,6.914]
[1750929145048,0.2016,2477.5,2477.4,4.03637475]
[1750929145249,1.915,2477.7,2477.6,4.03616402]
[1750929145480,0.2016,2477.9,2477.8,4.03583824]
[1750929145782,0.7732,2478.0,2477.8,4.03572158]
[1750929145961,11.7996,2478.1,2477.9,4.03567537]
[1750929146287,10.0,2478.0,2477.9,4.03567537]
[1750929146956,10.0,2478.0,2477.6,4.23766911]
[1750929147157,10.0,2478.0,2476.4,10.74123256]
[1750929147158,0.7583,2477.8,2477.1,4.03684388]
[1750929147358,0.2016,2477.5,2477.1,0.2016]
[1750929147574,0.7583,2477.5,2476.7,4.86416346]
[1750929147873,0.2016,2477.2,2476.7,1.0282]
[1750929148067,0.2016,2477.2,2477.0,4.03711493]
[1750929148280,0.2016,2477.2,2476.7,1.0282]
[1750929148458,0.2016,2477.2,2476.9,4.0372766]
[1750929148664,0.2016,2477.2,2476.9,4.03730469]
[1750929149063,0.2016,2477.2,2477.1,4.03697872]
[1750929149791,0.2016,2477.2,2476.7,1.0282]
[1750929149984,0.2016,2477.2,2476.9,4.03727313]
[1750929150280,0.2016,2477.2,2477.1,4.03697872]
[1750929150667,0.9599,2477.5,2477.1,4.03697872]
[1750929150867,0.2016,2477.5,2477.4,4.03648986]
[1750929151087,2.7269,2477.8,2477.5,4.03632602]
[1750929151401,0.2016,2477.7,2477.5,4.03629353]
[1750929151700,0.2016,2477.7,2477.6,4.03616402]
[1750929151927,2.1166,2477.9,2477.7,4.03597311]
[1750929152088,2.1166,2477.9,2477.6,4.03603428]
[1750929152276,2.1166,2477.9,2477.7,4.03598108]
[1750929152479,2.1166,2477.9,2477.6,4.03606986]
[1750929152884,1.915,2477.9,2477.5,4.03626694]
[1750929153119,0.2016,2477.7,2477.4,4.03648986]
[1750929153299,0.2016,2477.7,2477.6,4.03616402]
[1750929153522,1.915,2477.9,2477.8,4.03583824]
[1750929153690,0.2016,2477.9,2477.8,4.03583824]
[1750929153897,10.0,2478.0,2477.9,4.03567537]
[1750929154094,10.0,2478.0,2477.6,4.23766851]
[1750929154095,10.95343192,2478.0,2477.6,4.23766851]
[1750929154323,10.95343192,2478.0,2477.6,4.03606851]
[1750929154498,0.2016,2477.9,2477.5,0.2016]
[1750929154699,0.2016,2477.9,2477.7,4.03587163]
[1750929155131,0.2016,2477.9,2477.8,4.03583824]
[1750929155500,0.2016,2478.1,2478.0,4.03551251]
[1750929156415,0.2016,2478.1,2477.7,4.84267163]
[1750929156416,1.915,2478.2,2477.7,4.84267163]
[1750929156624,2.1166,2478.2,2477.9,4.03554009]
[1750929156867,4.09876,2478.2,2477.8,0.2016]
[1750929156996,0.2016,2477.8,2477.6,4.03607591]
[1750929157396,0.2016,2477.8,2477.5,4.03626143]
[1750929158027,0.2016,2477.8,2477.0,4.23868439]
[1750929158028,0.2016,2477.5,2477.0,4.23868439]
[1750929158232,10.0,2477.3,2477.0,4.03712292]
[1750929158434,10.0,2477.1,2476.8,4.03738337]
[1750929158933,0.2016,2477.0,2476.7,4.03761205]
[1750929159134,0.2016,2477.0,2476.9,4.03730469]
[1750929159363,10.0,2477.1,2476.9,4.03730469]
[1750929159542,10.0,2477.1,2476.8,4.23898747]
[1750929160046,0.2016,2477.0,2476.5,4.23951778]
[1750929160342,0.2016,2476.8,2476.4,4.23962436]
[1750929160713,10.95323847,2476.9,2476.2,4.03833224]
[1750929160914,10.95323847,2476.9,2475.8,4.03905381]
[1750929160915,15.28660496,2476.9,2475.8,4.03905381]
[1750929161114,0.2016,2476.4,2476.0,4.24033838]
[1750929161321,0.2016,2476.4,2476.1,4.0385238]
[1750929161859,0.2016,2476.4,2476.2,4.03840426]
[1750929162352,1.897,2476.6,2476.1,4.0384853]
[1750929162500,0.2016,2476.5,2476.3,4.038195]
[1750929162706,0.2016,2476.5,2476.4,4.03811985]
[1750929163345,0.9779,2476.8,2476.5,4.03786301]
[1750929163642,0.9779,2476.8,2476.1,4.03858952]
[1750929163643,11.898,2477.0,2476.8,4.03739574]
[1750929163842,1.898,2477.3,2477.0,4.0371417]
[1750929164010,0.2016,2477.2,2477.0,4.0371417]
[1750929164210,0.2016,2477.2,2476.9,4.03721413]
[1750929164417,0.2016,2477.2,2476.7,0.2016]
[1750929164418,12.18195,2477.2,2476.7,0.2016]
[1750929164622,0.2016,2476.8,2476.7,4.03763071]
[1750929164836,11.98035,2477.2,2476.8,4.03732808]
[1750929165053,0.2016,2477.0,2476.8,4.03746502]
[1750929166637,0.8235,2476.9,2476.7,4.03755621]
[1750929166839,0.2016,2477.0,2476.8,4.0374677]
[1750929167038,10.2016,2477.2,2477.1,4.03697872]
[1750929167226,0.7728,2477.6,2476.9,4.03730469]
[1750929167428,0.2016,2477.5,2477.2,4.03680956]
[1750929167744,0.2016,2477.5,2477.1,4.03688642]
[1750929168349,0.2016,2477.5,2477.2,4.03674023]
[1750929168850,2.07353037,2477.5,2476.1,4.03845933]
[1750929169049,0.2016,2477.2,2476.8,4.03733859]
[1750929169346,0.2016,2477.1,2476.8,4.03733859]
[1750929169559,0.7905,2477.0,2476.6,0.2016]
[1750929169762,0.2016,2476.7,2476.5,4.03788333]
[1750929169961,0.7905,2477.0,2476.5,4.03786739]
[1750929170142,0.2016,2476.6,2476.2,0.9641]
[1750929170350,0.2016,2476.6,2476.5,4.03795679]
[1750929170920,0.2016,2476.6,2476.4,4.03799248]
[1750929171122,0.2016,2476.6,2476.5,4.03795679]
[1750929171433,0.2016,2476.6,2476.4,4.03803244]
[1750929172858,0.2016,2476.6,2476.5,4.03795679]
[1750929173259,0.2016,2476.6,2476.4,4.03803446]
[1750929173562,2.6885,2477.0,2476.3,4.03817025]
[1750929173766,0.2016,2476.5,2476.3,4.03817025]
[1750929173940,0.2016,2476.5,2476.4,4.03811985]
[1750929174330,0.2016,2476.5,2476.3,4.03815492]
[1750929175153,0.2016,2476.5,2476.4,4.03811985]
[1750929176177,0.2016,2476.5,2476.3,4.03820562]
[1750929176536,0.2016,2476.5,2476.2,4.03837608]
[1750929176735,30.0,2476.4,2475.6,0.2184268]
[1750929177047,30.0,2476.4,2475.5,0.01]
[1750929177048,14.04024079,2475.1,2475.0,0.01]
[1750929177257,14.04024079,2475.1,2474.0,0.32545942]
[1750929177258,14.04073056,2474.8,2474.0,0.32545942]
[1750929177446,17.33582834,2474.8,2474.0,0.32545942]
[1750929177645,7.88501887,2474.5,2473.1,0.19388622]
[1750929177848,10.0,2474.2,2473.1,0.19388622]
[1750929178039,1.27566647,2474.1,2473.1,0.19388622]
[1750929178240,4.04228891,2473.9,2473.1,0.19388622]
[1750929178445,0.8308,2474.0,2473.1,0.19388622]
[1750929178861,0.8308,2474.4,2473.4,0.8056]
[1750929179167,0.33239394,2474.3,2473.3,0.8056]
[1750929179360,0.33239394,2474.3,2473.5,4.0427216]
[1750929179662,0.33239394,2474.3,2473.3,0.8056]
[1750929180167,10.0,2474.0,2473.1,0.19388622]
[1750929180373,0.21038328,2470.3,2467.5,62.78818402]
[1750929180582,0.21038328,2470.3,2469.5,4.0]
[1750929180583,10.0,2470.0,2469.5,4.0]
[1750929180726,10.0,2470.0,2468.2,0.2184268]
[1750929180727,18.735211,2469.2,2468.2,0.2184268]
[1750929181066,10.0,2470.0,2468.2,0.2184268]
[1750929181067,10.0,2469.8,2468.6,2.68]
[1750929181364,0.7713,2469.4,2468.5,0.27545942]
[1750929181566,11.93526619,2469.0,2468.5,0.27545942]
[1750929181739,10.0,2469.1,2468.5,0.27545942]
[1750929181941,18.735211,2468.8,2468.5,0.27545942]
[1750929182141,10.0,2468.9,2468.5,0.27545942]
[1750929182142,32.78609004,2468.6,2468.5,0.27545942]
[1750929182354,28.735211,2468.6,2468.5,0.27545942]
[1750929182667,32.78609004,2468.6,2468.5,0.27545942]
[1750929182830,33.53819004,2468.6,2468.5,0.27545942]
[1750929183030,29.487311,2468.6,2468.5,0.27545942]
[1750929183256,10.0,2468.6,2468.5,0.27545942]
[1750929183477,0.7521,2469.1,2468.5,0.27545942]
[1750929183679,10.0,2468.9,2468.5,0.27545942]
[1750929183985,0.7869,2469.9,2468.5,0.27545942]
[1750929184272,14.04937214,2469.6,2468.6,2.781]
[1750929184443,18.735211,2469.3,2468.7,0.30564594]
[1750929184629,0.5,2469.7,2468.7,0.30564594]
[1750929184972,0.7558,2470.1,2468.8,2.781]
[1750929185144,0.7558,2470.6,2469.4,4.04955463]
[1750929185333,4.0467862,2471.1,2469.7,4.04891129]
[1750929185529,4.0467862,2471.1,2469.4,8.368]
[1750929185530,0.7709,2470.9,2469.4,0.819]
[1750929185730,0.7709,2471.3,2470.2,4.0482552]
[1750929185954,0.54250265,2470.3,2470.2,7.23608072]
[1750929186181,1.215222,2471.9,2470.2,7.23608072]
[1750929186182,0.7994,2471.9,2470.3,0.7635]
[1750929186476,0.7994,2472.7,2470.4,4.04792746]
[1750929186679,4.04432581,2472.6,2471.1,4.04665585]
[1750929186833,0.2016,2471.5,2471.3,4.04630027]
[1750929187029,0.2016,2471.5,2471.2,2.783]
[1750929187273,10.87391944,2472.7,2470.2,0.40482552]
[1750929187546,10.07451944,2472.2,2470.4,11.175]
[1750929187866,4.04513677,2472.2,2470.9,4.04707263]
[1750929188069,4.0451128,2472.2,2470.4,11.175]
[1750929188266,1.08739194,2472.6,2470.8,4.04711226]
[1750929188441,1.08739194,2472.6,2470.4,11.175]
[1750929188643,1.08739194,2472.6,2470.5,4.04776361]
[1750929188644,1.19613114,2472.5,2470.5,4.04776361]
[1750929188866,4.04468256,2472.4,2470.6,20.872]
[1750929189057,4.04468256,2472.4,2470.7,4.04737693]
[1750929189368,0.91897531,2472.3,2471.2,4.04651956]
[1750929189579,0.91897531,2472.2,2471.6,4.0458369]
[1750929189757,0.91897531,2472.1,2470.8,4.04716332]
[1750929189961,0.91897531,2472.0,2471.2,4.04660299]
[1750929190162,0.27729094,2471.9,2471.4,4.04618189]
[1750929190362,0.27729094,2471.9,2471.5,4.04612583]
[1750929190562,0.27729094,2471.9,2471.6,6.82880024]
[1750929190847,0.27729094,2471.8,2471.7,2.783]
[1750929191570,0.27729094,2471.8,2471.7,6.82879843]
[1750929192289,0.27729094,2471.8,2471.7,15.20079843]
[1750929193351,0.27729094,2471.8,2471.7,16.81853004]
[1750929194350,0.27729094,2471.8,2471.7,17.36853004]
[1750929194558,0.91897531,2473.0,2471.7,13.32273161]
[1750929194782,0.91897531,2472.9,2471.9,0.55]
[1750929194964,0.91897531,2472.8,2471.9,4.59547109]
[1750929195290,0.769,2473.2,2472.7,4.04416225]
[1750929195587,0.92030623,2473.1,2472.6,4.04423981]
[1750929195764,0.92030623,2473.0,2471.9,0.40471633]
[1750929195951,10.92030623,2472.9,2471.9,4.04535651]
[1750929196283,0.92030623,2472.8,2471.6,2.783]
[1750929196499,0.92030623,2472.7,2472.2,4.04487063]
[1750929196791,0.92030623,2472.6,2472.1,4.04507559]
[1750929196971,0.92030623,2472.5,2471.8,4.04559634]
[1750929197175,0.92030623,2472.4,2471.8,6.82852522]
[1750929197374,0.2016,2471.9,2471.8,6.82852522]
[1750929197692,0.2016,2472.1,2471.8,2.783]
[1750929197859,0.92251588,2472.0,2471.7,4.04579843]
[1750929198064,0.2016,2472.0,2471.9,4.04531008]
[1750929198299,1.12416222,2472.0,2471.9,4.04531008]
[1750929199176,1.12416222,2472.0,2471.8,6.8285508]
[1750929199363,0.92256222,2471.9,2471.8,6.8285508]
[1750929199561,0.92256222,2471.9,2471.5,0.2016]
[1750929199799,0.92256222,2471.8,2471.4,11.066]
[1750929199971,0.796,2472.2,2471.9,4.04544488]
[1750929200158,0.92502373,2472.1,2471.8,4.04556162]
[1750929200362,0.92502373,2472.0,2471.8,4.04556162]
[1750929200562,0.92502373,2471.9,2471.7,4.04572834]
[1750929200762,13.85703995,2472.6,2471.9,4.04544596]
[1750929200958,2.31192274,2472.5,2471.9,4.04537104]
[1750929201196,0.92621874,2472.4,2471.9,4.04537104]
[1750929201497,0.92621874,2472.3,2472.0,4.04528955]
[1750929201805,0.5,2472.4,2471.6,4.04596212]
[1750929201806,0.92621874,2472.2,2471.6,4.04596212]
[1750929201967,0.92621874,2472.1,2471.7,4.04569772]
[1750929202189,0.92621874,2472.0,2471.5,15.0989691]
[1750929202492,0.92621874,2471.9,2471.6,4.04596212]
[1750929202824,0.92621874,2471.8,2471.7,4.04579843]
[1750929203130,0.92621874,2471.8,2471.1,4.04666155]
[1750929203287,0.92621874,2471.7,2471.6,4.04596212]
[1750929203494,0.92621874,2471.7,2471.4,4.04623599]
[1750929203689,0.92621874,2471.6,2470.6,4.0475114]
[1750929204003,0.92621874,2471.5,2471.4,4.04628955]
[1750929204386,0.92621874,2471.5,2471.4,4.41645542]
[1750929204825,0.92621874,2471.5,2471.4,4.41648839]
[1750929205310,0.92621874,2471.5,2471.4,0.37019884]
[1750929205990,0.92621874,2471.5,2471.3,4.0463452]
[1750929206182,3.89885399,2471.7,2471.2,4.04661307]
[1750929206387,3.12852338,2471.4,2471.3,4.04645328]
[1750929206619,0.93855701,2471.4,2471.3,4.04645328]
[1750929206928,4.06783491,2471.4,2471.3,4.04645328]
[1750929207402,0.93855701,2471.4,2471.2,4.04661702]
[1750929207729,4.07105983,2471.3,2471.2,4.04651598]
[1750929207886,1.34658132,2471.3,2470.3,0.7502]
[1750929208085,3.89885399,2471.0,2470.3,0.7502]
[1750929208396,4.83832933,2470.9,2470.7,4.04737504]
[1750929208585,0.93947534,2470.8,2470.7,4.04737504]
[1750929208785,0.93947534,2470.8,2470.6,4.04750906]
[1750929208985,6.39787093,2470.7,2470.4,4.0478538]
[1750929209226,0.93947534,2470.6,2470.4,4.0478538]
[1750929209413,6.39787093,2470.5,2470.4,4.0478538]
[1750929209813,0.93947534,2470.5,2470.4,4.2494538]
[1750929210905,4.07679359,2470.5,2470.4,4.2494538]
[1750929211300,4.07679359,2470.5,2470.4,4.04792746]
[1750929211516,0.93947534,2470.5,2470.4,4.04792746]
[1750929211700,4.8599741,2470.5,2470.2,4.04818581]
[1750929211903,0.93947534,2470.4,2469.9,0.7714]
[1750929212145,0.93947534,2470.3,2470.1,4.04837235]
[1750929212323,0.93947534,2470.2,2470.1,4.04837235]
[1750929212496,4.87306448,2470.2,2470.1,4.04841909]
[1750929212687,4.87306448,2470.2,2470.1,8.184]
[1750929212897,0.0170343,2470.1,2469.7,2.708]
[1750929213093,0.0170343,2470.1,2469.9,4.04874691]
[1750929213094,4.87306448,2470.0,2469.9,4.04874691]
[1750929213333,4.87306448,2470.0,2469.8,12.23283798]
[1750929213545,6.39787093,2469.9,2469.8,4.04891084]
[1750929214006,0.93947534,2469.9,2469.8,4.04891084]
[1750929214203,0.0170343,2470.1,2470.0,4.04858299]
[1750929214401,16.42079674,2470.1,2470.0,4.04858299]
[1750929215331,0.96240115,2470.1,2470.0,4.04858299]
[1750929215525,0.96240115,2470.1,2470.0,6.75658299]
[1750929215842,0.96240115,2470.1,2470.0,12.20058299]
[1750929216003,4.11956773,2470.1,2470.0,4.04858299]
[1750929216203,0.96240115,2470.1,2469.7,8.149]
[1750929216414,3.15696231,2469.9,2469.7,4.04902586]
[1750929216715,4.10028615,2469.8,2469.7,12.19802586]
[1750929217309,4.10028615,2469.8,2469.7,4.04902586]
[1750929217537,0.94536685,2469.8,2469.7,12.19602586]
[1750929218236,4.10028615,2469.8,2469.7,12.19602586]
[1750929218437,0.94536685,2469.8,2469.7,4.04907478]
[1750929219940,0.94536685,2469.8,2469.7,12.16307478]
[1750929220447,0.94536685,2469.8,2469.7,4.04907478]
[1750929220619,0.94536685,2469.8,2469.7,12.16307478]
[1750929221214,0.94536685,2469.8,2469.7,4.04907478]
[1750929221422,0.94536685,2469.8,2469.7,12.35247478]
[1750929221956,3.1549193,2470.8,2469.7,9.6106]
[1750929222125,3.3565193,2470.9,2470.4,4.04789358]
[1750929222322,1.22200598,2471.3,2470.5,4.04776361]
[1750929222323,0.2016,2470.7,2470.5,4.04776361]
[1750929222728,3.3565193,2470.7,2470.4,12.34149817]
[1750929222924,10.0,2470.7,2469.9,8.095]
[1750929223149,0.2024,2470.3,2470.1,4.04833946]
[1750929223544,0.2024,2470.3,2470.0,4.04851741]
[1750929223852,0.2024,2470.3,2470.0,8.085]
[1750929224156,0.2024,2470.3,2469.9,12.13368711]
[1750929224321,3.1549193,2470.4,2470.0,4.04857655]
[1750929224661,0.2024,2470.1,2470.0,4.04857655]
[1750929225053,0.2024,2470.1,2469.9,4.04866321]
[1750929225218,0.2024,2470.1,2470.0,4.04858299]
[1750929225417,3.1549193,2470.3,2470.2,4.0482552]
[1750929225743,3.3573193,2470.3,2470.2,4.0482552]
[1750929226049,0.2024,2470.3,2470.2,4.0482552]
[1750929226255,0.2024,2470.3,2470.0,4.04851401]
[1750929226553,0.2024,2470.3,2470.2,4.0482552]
[1750929227556,0.2024,2470.3,2470.1,4.04838144]
[1750929227731,0.2024,2470.3,2470.0,4.04852159]
[1750929228057,0.61818193,2470.3,2469.8,4.25118338]
[1750929228264,0.61818193,2470.3,2469.9,4.0487344]
[1750929228265,3.77310123,2470.3,2469.9,4.0487344]
[1750929228444,3.77310123,2470.3,2469.8,0.2024]
[1750929228762,3.77310123,2470.3,2469.9,4.04871491]
[1750929229273,3.77310123,2470.3,2469.6,4.25163874]
[1750929229274,0.2024,2470.0,2469.6,4.25163874]
[1750929229437,3.3573193,2470.3,2470.1,4.04830905]
[1750929229624,13.3573193,2470.3,2469.8,0.2024]
[1750929229824,3.1549193,2470.2,2469.9,4.04873981]
[1750929230024,13.3573193,2470.3,2469.9,4.04859178]
[1750929230320,0.53,2470.2,2470.1,4.04841909]
[1750929230523,0.53,2470.2,2470.0,12.06750387]
[1750929230724,0.53,2470.2,2470.0,4.04850387]
[1750929230960,0.53,2470.2,2470.1,4.04841909]
[1750929231539,0.53,2470.2,2469.9,4.04873798]
[1750929231750,0.53,2470.2,2470.0,4.04858299]
[1750929231951,0.53,2470.2,2470.1,4.04841909]
[1750929232453,0.53,2470.2,2470.0,4.04849185]
[1750929232623,0.53,2470.2,2470.1,4.04841909]
[1750929233025,0.53,2470.2,2470.1,4.25081909]
[1750929233474,0.53,2470.2,2470.1,4.04841909]
[1750929233979,1.4784806,2470.2,2470.1,4.04841909]
[1750929236278,0.53,2470.2,2470.1,4.04841909]
[1750929236477,0.7546,2470.9,2470.5,4.04764204]
[1750929236646,0.7546,2470.9,2470.6,4.04758906]
[1750929236647,0.95489839,2470.8,2470.6,4.04758906]
[1750929236848,0.95069813,2470.7,2470.4,4.04788146]
[1750929237191,0.7546,2470.9,2469.9,7.976]
[1750929237192,0.95489839,2470.6,2469.9,7.976]
[1750929237408,0.95069813,2470.5,2469.8,4.84658822]
[1750929237549,3.57489839,2470.4,2469.9,4.0486572]
[1750929237748,0.95069813,2470.3,2469.6,4.04916178]
[1750929237946,0.95489839,2470.2,2469.7,4.04897599]
[1750929238183,0.95069813,2470.1,2469.8,4.04889979]
[1750929238480,0.95190501,2470.0,2469.9,4.04872358]
[1750929238780,0.95190501,2470.0,2469.5,12.85357121]
[1750929238781,0.95190501,2470.0,2469.6,4.04909419]
[1750929239275,0.95190501,2470.0,2469.4,4.04954308]
[1750929239646,0.8199,2470.1,2469.4,4.04956135]
[1750929239847,0.8199,2470.1,2468.7,0.8107]
[1750929239848,10.95188995,2470.0,2468.7,0.8107]
[1750929240049,3.32992678,2469.9,2469.1,4.05005698]
[1750929240383,3.32992678,2469.9,2469.1,4.05004886]
[1750929240384,0.8086,2469.5,2469.1,4.05004886]
[1750929240689,2.621,2469.5,2468.7,0.8107]
[1750929241182,0.95205076,2469.4,2468.6,4.05087493]
[1750929241487,0.95205076,2469.3,2469.2,4.0498947]
[1750929241652,0.95205076,2469.5,2469.4,4.04956669]
[1750929242178,10.95205076,2469.8,2469.4,4.04942956]
[1750929242383,0.95205076,2469.7,2469.5,4.04938757]
[1750929242580,12.38686584,2469.8,2469.5,4.04938757]
[1750929242784,12.38686584,2469.8,2469.5,4.04929101]
[1750929242963,0.95205076,2469.8,2469.4,4.04947793]
[1750929243164,0.95205076,2469.9,2469.3,4.04966046]
[1750929243507,10.0,2470.0,2469.1,0.2024]
[1750929243508,0.2024,2469.6,2469.1,0.2024]
[1750929243665,0.2024,2469.6,2469.1,4.25240719]
[1750929244009,0.2024,2469.4,2469.3,4.04972405]
[1750929244302,0.2024,2469.4,2469.2,4.04983165]
[1750929244454,0.7675,2469.6,2469.0,4.05019466]
[1750929244658,0.2024,2469.2,2469.0,4.05019466]
[1750929244964,0.2024,2469.2,2468.6,4.05087904]
[1750929245165,0.2024,2468.9,2468.8,4.05045841]
[1750929245791,0.7675,2469.6,2469.5,4.04940271]
[1750929246086,0.9699,2469.6,2469.5,4.04940271]
[1750929246659,0.2024,2469.6,2469.5,4.04940271]
[1750929246858,0.2024,2469.7,2469.6,4.04910135]
[1750929247055,10.0,2469.9,2469.4,4.04947532]
[1750929247292,10.0,2469.9,2468.8,1.59751533]
[1750929247293,0.2024,2469.5,2469.1,4.25238934]
[1750929247461,0.2024,2469.5,2469.2,4.04988906]
[1750929247967,0.7501,2469.4,2469.0,4.05007668]
[1750929248178,0.2024,2469.2,2469.0,4.05014121]
[1750929248391,0.2024,2469.2,2468.8,4.05046055]